fUST/lending_fUST_20250801
["ID","MTS","AMOUNT","RATE_DAILY","PERIOD"]
[376539912,1754011841378,-200.0,0.00024838,15]
[376539914,1754011841387,-460.0,0.00024861,2]
[376539916,1754011841397,-590.86,0.0002493,2]
[376539918,1754011841406,-460.0,0.0002493,2]
[376539920,1754011841423,-150.0,0.00025075,2]
[376539922,1754011841436,-399.72,0.00025135,2]
[376539924,1754011841446,-590.86,0.00025204,2]
[376539926,1754011841456,-460.0,0.0002537,2]
[376539928,1754011841467,-590.86,0.00025478,2]
[376539930,1754011841477,-7892.15,0.000255,7]
[376539932,1754011841487,-165.73408516,0.00025544,2]
[376539934,1754011841497,-151.0,0.000256,13]
[376539936,1754011841506,-460.0,0.00025644,2]
[376539937,1754011841515,-195.28176882,0.00025719,2]
[376539939,1754011841525,-590.86,0.00025752,2]
[376539941,1754011841534,-169.07,0.00025818,2]
[376539943,1754011841544,-460.0,0.00025818,2]
[376539945,1754011841553,-406.05746819,0.00025818,2]
[376539947,1754011841563,-460.0,0.00025818,2]
[376539950,1754011841574,-460.0,0.00025818,2]
[376539952,1754011841584,-395.8692965,0.00025818,2]
[376539953,1754011841594,-460.0,0.00025918,2]
[376539956,1754011841604,-165.73408516,0.00025943,2]
[376539958,1754011841615,-587.0,0.00025977,2]
[376539960,1754011841624,-11575.70583583,0.0002599,2]
[376539962,1754011841634,-760.47,0.0002599,4]
[376539964,1754011841644,-2427.16,0.00026,7]
[376539965,1754011841656,-151.0,0.00026,12]
[376539967,1754011841670,-590.86,0.00026026,2]
[376539969,1754011841681,-460.0,0.00026092,2]
[376539971,1754011841691,-460.0,0.00026092,2]
[376539973,1754011841700,-460.0,0.00026092,2]
[376539975,1754011841710,-463.2477394,0.00026191,2]
[376539977,1754011841720,-466.217055,0.00026191,2]
[376539980,1754011841731,-466.16567635,0.00026191,2]
[376539981,1754011841740,-257.94000214,0.00026191,2]
[376539984,1754011841750,-402.45265026,0.00026191,2]
[376539985,1754011841760,-466.24332828,0.00026191,2]
[376539988,1754011841770,-462.34062611,0.00026191,2]
[376539990,1754011841781,-460.0,0.00026192,2]
[376539992,1754011841791,-800.0,0.000263,2]
[376539993,1754011841801,-590.86,0.000263,2]
[376539995,1754011841811,-7914.33915886,0.00026339,2]
[376539998,1754011841821,-165.73408516,0.00026341,2]
[376539999,1754011841834,-460.0,0.00026366,2]
[376540001,1754011841844,-460.0,0.00026366,2]
[376540004,1754011841855,-151.0,0.00026423,2]
[376540006,1754011841866,-151.0,0.00026423,2]
[376540007,1754011841876,-151.0,0.00026423,2]
[376540009,1754011841886,-151.0,0.00026423,2]
[376540012,1754011841896,-151.0,0.00026423,2]
[376540013,1754011841906,-151.0,0.00026423,2]
[376540016,1754011841919,-151.0,0.00026423,2]
[376540018,1754011841931,-151.0,0.00026423,2]
[376540020,1754011841943,-151.0,0.00026423,2]
[376540021,1754011841954,-151.0,0.00026423,2]
[376540024,1754011841964,-2030.296672,0.00026423,2]
[376540026,1754011841974,-151.0,0.00026423,2]
[376540028,1754011841983,-151.0,0.00026423,2]
[376540030,1754011841994,-151.0,0.00026423,2]
[376540032,1754011842005,-151.0,0.00026423,2]
[376540034,1754011842015,-151.0,0.00026423,2]
[376540036,1754011842026,-151.0,0.00026423,2]
[376540038,1754011842039,-151.0,0.00026423,2]
[376540040,1754011842049,-151.0,0.00026423,2]
[376540042,1754011842059,-151.0,0.00026423,2]
[376540044,1754011842069,-151.0,0.00026423,2]
[376540046,1754011842079,-151.0,0.00026423,2]
[376540048,1754011842089,-151.0,0.00026423,2]
[376540050,1754011842099,-151.0,0.00026423,2]
[376540052,1754011842110,-151.0,0.00026423,2]
[376540054,1754011842121,-252.94165188,0.00026423,2]
[376540056,1754011842131,-151.0,0.00026423,2]
[376540058,1754011842143,-151.0,0.00026423,2]
[376540059,1754011842154,-151.0,0.00026423,2]
[376540061,1754011842169,-151.0,0.00026423,2]
[376540063,1754011842180,-151.0,0.00026423,2]
[376540065,1754011842190,-151.0,0.00026423,2]
[376540067,1754011842202,-151.0,0.00026423,2]
[376540069,1754011842212,-151.0,0.00026423,2]
[376540071,1754011842222,-159.54277582,0.00026423,2]
[376540073,1754011842232,-460.0,0.00026433,2]
[376540076,1754011842243,-460.0,0.00026433,2]
[376540077,1754011842253,-460.0,0.00026433,2]
[376540080,1754011842264,-460.0,0.00026433,2]
[376540082,1754011842275,-460.0,0.00026433,2]
[376540084,1754011842285,-460.0,0.00026438,2]
[376540086,1754011842296,-460.0,0.00026438,2]
[376540087,1754011842306,-460.0,0.00026438,2]
[376540090,1754011842316,-564.31,0.00026438,2]
[376540092,1754011842326,-249.74483451,0.00026439,2]
[376540094,1754011842335,-500.0,0.00026439,2]
[376540096,1754011842345,-500.0,0.00026439,10]
[376540098,1754011842355,-312.16666667,0.00026439,10]
[376540100,1754011842365,-312.16666667,0.00026439,30]
[376540102,1754011842375,-526.848153,0.00026439,10]
[376540104,1754011842386,-526.848153,0.00026439,30]
[376540106,1754011842396,-533.26811189,0.0002644,2]
[376540108,1754011842405,-533.26811189,0.0002644,2]
[376540109,1754011842417,-533.26811189,0.0002644,2]
[376540111,1754011842432,-533.26811189,0.0002644,2]
[376540113,1754011842441,-533.26811189,0.0002644,2]
[376540116,1754011842451,-533.26811189,0.0002644,2]
[376540118,1754011842460,-533.26811189,0.0002644,2]
[376540120,1754011842471,-533.26811189,0.0002644,2]
[376540122,1754011842481,-533.26811189,0.0002644,2]
[376540124,1754011842491,-533.26811189,0.0002644,2]
[376540125,1754011842502,-533.26811189,0.0002644,2]
[376540128,1754011842513,-533.26811189,0.0002644,2]
[376540129,1754011842523,-533.26811189,0.0002644,2]
[376540131,1754011842533,-533.26811189,0.0002644,2]
[376540133,1754011842543,-533.26811189,0.0002644,2]
[376540135,1754011842553,-533.26811189,0.0002644,2]
[376540137,1754011842563,-502458.53052717,0.00026441,20]
[376540141,1754011842584,-500.0,0.00023216,2]
[376540143,1754011842594,-1486.7330967,0.00026441,20]
[376540342,1754011844489,-152664.42231463,0.00026441,20]
[376540417,1754011845222,-500.0,0.00023216,2]
[376540419,1754011845233,-13144.384747,0.00026441,20]
[376540660,1754011847177,-460.0,0.0002219,2]
[376540662,1754011847189,-460.0,0.0002219,2]
[376540665,1754011847200,-460.0,0.00022395,2]
[376540666,1754011847210,-941.405588,0.00022442,6]
[376540731,1754011847564,-1836.44171298,0.00022442,6]
[376540733,1754011847574,-460.0,0.00022464,2]
[376540735,1754011847585,-460.0,0.00022464,2]
[376540737,1754011847596,-460.0,0.00022669,2]
[376540739,1754011847606,-460.0,0.00022738,2]
[376540741,1754011847617,-460.0,0.00022738,2]
[376540743,1754011847629,-460.0,0.00022943,2]
[376540745,1754011847640,-460.0,0.00023012,2]
[376540747,1754011847651,-460.0,0.00023012,2]
[376540749,1754011847661,-465.17762929,0.00023217,2]
[376540751,1754011847675,-460.0,0.00023286,2]
[376540753,1754011847685,-460.0,0.00023286,2]
[376540756,1754011847698,-460.0,0.0002356,2]
[376540758,1754011847708,-460.0,0.0002356,2]
[376540759,1754011847719,-308.84913929,0.00023834,2]
[376540762,1754011847731,-575.6632965,0.00023834,2]
[376540763,1754011847744,-355.922754,0.0002598,2]
[376540766,1754011847755,-464.40043515,0.00026191,2]
[376540768,1754011847766,-1257.9,0.00026431,10]
[376540770,1754011847777,-460.0,0.00026438,2]
[376540772,1754011847788,-3648.7696436,0.00026441,20]
[376540884,1754011850088,-461.63821429,0.00024382,2]
[376540885,1754011850098,-463.96044795,0.00026191,2]
[376540886,1754011850107,-16106.72781676,0.00026441,20]
[376540887,1754011850262,-296996.574,0.00026441,20]
[376540929,1754012734996,-5000.0,0.000198,6]
[376540930,1754012735017,-160.0,0.0002,3]
[376540931,1754012735037,-160.0,0.0002,3]
[376540932,1754012735057,-179.74835231,0.00020105,2]
[376540933,1754012735077,-547.11,0.000203,2]
[376540934,1754012735096,-160.0,0.00020541,2]
[376540935,1754012735116,-160.0,0.00020541,2]
[376540936,1754012735137,-657.3752328,0.00020762,2]
[376540937,1754012735161,-150.54761465,0.00021918,2]
[376540938,1754012735182,-160.0,0.00021945,2]
[376540939,1754012735202,-1200.0,0.00021997,2]
[376540940,1754012735220,-238.0,0.00021998,2]
[376540941,1754012735240,-300.0,0.00021998,2]
[376540942,1754012735260,-465.03404526,0.00021999,2]
[376540943,1754012735280,-461.99387337,0.00021999,2]
[376540944,1754012735302,-187.35344696,0.00021999,2]
[376540945,1754012735322,-460.0,0.00021999,2]
[376540946,1754012735342,-344.18693361,0.00021999,2]
[376540947,1754012735363,-526.72573783,0.00021999,2]
[376540948,1754012735383,-581.42569397,0.00021999,2]
[376540949,1754012735403,-460.0,0.00021999,2]
[376540950,1754012735425,-460.0,0.00021999,2]
[376540951,1754012735446,-460.0,0.00021999,2]
[376540952,1754012735465,-462.84416583,0.00021999,2]
[376540953,1754012735485,-460.0,0.00021999,2]
[376540954,1754012735505,-460.0,0.00021999,2]
[376540955,1754012735524,-460.0,0.00021999,2]
[376540956,1754012735544,-460.0,0.00021999,2]
[376540957,1754012735565,-460.0,0.00021999,2]
[376540958,1754012735590,-464.81190026,0.00021999,2]
[376540959,1754012735609,-460.0,0.00021999,2]
[376540960,1754012735628,-464.26345411,0.00021999,2]
[376540961,1754012735649,-465.30506348,0.00021999,2]
[376540962,1754012735670,-460.0,0.00021999,2]
[376540963,1754012735690,-460.0,0.00021999,2]
[376540964,1754012735713,-460.0,0.00021999,2]
[376540965,1754012735735,-460.0,0.00021999,2]
[376540966,1754012735757,-1432.92,0.00021999,2]
[376540967,1754012735778,-460.0,0.00021999,2]
[376540968,1754012735799,-460.0,0.00021999,2]
[376540969,1754012735820,-460.94609594,0.00021999,2]
[376540970,1754012735841,-464.87808526,0.00021999,2]
[376540971,1754012735860,-460.0,0.00021999,2]
[376540972,1754012735881,-460.0,0.00021999,2]
[376540973,1754012735902,-461.86250395,0.00021999,2]
[376540974,1754012735923,-460.0,0.00021999,2]
[376540975,1754012735943,-460.0,0.00021999,2]
[376540976,1754012735964,-504.62,0.00021999,2]
[376540977,1754012735984,-160.0,0.00022123,2]
[376540978,1754012736004,-160.0,0.00022123,2]
[376540979,1754012736025,-216.18812866,0.00022123,2]
[376540980,1754012736046,-160.0,0.00022123,2]
[376540981,1754012736066,-841.37753757,0.00022123,2]
[376540982,1754012736086,-1396.03187928,0.00022123,2]
[376540983,1754012743592,202.93099989,0.000274,120]
[376540986,1754012787675,274.214397,0.00013699,2]
[376540992,1754013013128,753.84,0.000274,120]
[376541020,1754013038693,-263.49895276,0.00019823,2]
[376541021,1754013038704,-160.0,0.0002,3]
[376541022,1754013038714,-160.0,0.0002,3]
[376541023,1754013038723,-181.14214632,0.00020023,2]
[376541024,1754013038732,-274.214397,0.00020187,2]
[376541025,1754013038742,-492.4,0.000203,2]
[376541026,1754013038751,-663.5060867,0.00020699,2]
[376541027,1754013038760,-223.9,0.00020763,3]
[376541028,1754013038769,-161.7341063,0.00021065,2]
[376541029,1754013038778,-223.9,0.00021286,4]
[376541030,1754013038787,-223.9,0.00021809,4]
[376541031,1754013038797,-300.0,0.00021989,2]
[376541032,1754013038807,-561.0,0.00021989,2]
[376541033,1754013038820,-11727.40992583,0.0002199,2]
[376541034,1754013038830,-160.0,0.00021991,2]
[376541035,1754013038840,-160.0,0.00021991,2]
[376541036,1754013038849,-216.18812866,0.00021991,2]
[376541037,1754013038859,-160.0,0.00021991,2]
[376541038,1754013038869,-841.37753757,0.00021991,2]
[376541039,1754013038878,-463.2477394,0.00021998,2]
[376541040,1754013038888,-466.16567635,0.00021998,2]
[376541041,1754013038898,-257.94000214,0.00021998,2]
[376541042,1754013038907,-402.45265026,0.00021998,2]
[376541043,1754013038916,-466.24332828,0.00021998,2]
[376541044,1754013038926,-460.0,0.00021999,2]
[376541045,1754013038935,-460.0,0.00021999,2]
[376541046,1754013038944,-461.05614505,0.00021999,2]
[376541047,1754013038956,-462.81621514,0.00021999,2]
[376541048,1754013038965,-463.33491231,0.00021999,2]
[376541049,1754013038974,-462.11500614,0.00021999,2]
[376541050,1754013038983,-463.64662362,0.00021999,2]
[376541051,1754013038993,-500.0,0.00021999,2]
[376541052,1754013039002,-500.0,0.00021999,2]
[376541053,1754013039012,-500.0,0.00021999,2]
[376541054,1754013039021,-500.0,0.00021999,2]
[376541055,1754013039031,-500.0,0.00021999,2]
[376541056,1754013039041,-500.0,0.00021999,2]
[376541057,1754013039050,-500.0,0.00021999,2]
[376541058,1754013039059,-460.56069336,0.00021999,2]
[376541059,1754013039068,-460.0,0.00021999,2]
[376541060,1754013039077,-592.37,0.00022,2]
[376541061,1754013039086,-12642.0599901,0.00022098,2]
[376541062,1754013039096,-160.0,0.00022098,2]
[376541063,1754013039105,-160.0,0.00022103,2]
[376541064,1754013039115,-526.848153,0.00022103,2]
[376541065,1754013039124,-160.0,0.00022103,2]
[376541066,1754013039133,-160.0,0.00022103,2]
[376541067,1754013039142,-214.99831783,0.00022103,2]
[376541068,1754013039151,-460.682337,0.00022103,2]
[376541069,1754013039160,-231.48161788,0.00022103,2]
[376541070,1754013039169,-160.0,0.00022111,2]
[376541071,1754013039179,-466.217055,0.00022128,2]
[376541072,1754013039188,-289.11629877,0.00022128,2]
[376541073,1754013039198,-462.34062611,0.00022128,2]
[376541074,1754013039209,-460.0,0.00022128,2]
[376541075,1754013039217,-463.42666825,0.00022128,2]
[376541076,1754013039226,-460.0,0.00022128,2]
[376541077,1754013039235,-460.0,0.00022128,2]
[376541078,1754013039245,-460.0,0.00022128,2]
[376541079,1754013039254,-461.77182175,0.00022128,2]
[376541080,1754013039263,-437.14282474,0.00022128,2]
[376541081,1754013039273,-460.0,0.00022128,2]
[376541082,1754013039282,-460.0,0.00022128,2]
[376541083,1754013039291,-464.73874985,0.00022128,2]
[376541084,1754013039300,-460.0,0.00022137,2]
[376541085,1754013039309,-460.0,0.00022137,2]
[376541086,1754013039318,-542.9,0.00022137,2]
[376541087,1754013039328,-2204.99,0.00022137,2]
[376541088,1754013039337,-2819.63,0.00022138,2]
[376541089,1754013039346,-460.0,0.00022138,2]
[376541090,1754013039355,-523.84,0.00022138,2]
[376541091,1754013039365,-460.0,0.00022138,2]
[376541092,1754013039374,-460.0,0.00022138,2]
[376541093,1754013039383,-462.16651085,0.00022138,2]
[376541094,1754013039393,-2889.2,0.00022138,2]
[376541095,1754013039402,-460.0,0.00022138,2]
[376541096,1754013039411,-479.84,0.00022138,2]
[376541097,1754013039420,-460.0,0.00022138,2]
[376541098,1754013039430,-460.0,0.00022138,2]
[376541099,1754013039439,-6096.72,0.00022138,2]
[376541100,1754013039448,-647.09,0.00022138,2]
[376541101,1754013039462,-460.0,0.00022138,2]
[376541102,1754013039471,-460.0,0.00022138,2]
[376541103,1754013039481,-565.34,0.00022138,2]
[376541104,1754013039490,-785.43,0.00022138,2]
[376541105,1754013039499,-460.0,0.00022138,2]
[376541106,1754013039509,-460.0,0.00022138,2]
[376541107,1754013039518,-460.0,0.00022138,2]
[376541108,1754013039528,-460.0,0.00022138,2]
[376541109,1754013039537,-178.6343638,0.00022144,2]
[376541110,1754013039546,-162.025,0.00022144,2]
[376541111,1754013039555,-460.0,0.00022148,2]
[376541112,1754013039565,-460.0,0.00022148,2]
[376541113,1754013039574,-462.25298743,0.00022148,2]
[376541114,1754013039584,-465.18295063,0.00022148,2]
[376541115,1754013039593,-460.0,0.00022148,2]
[376541116,1754013039603,-460.0,0.00022148,2]
[376541117,1754013039612,-463.61441253,0.00022148,2]
[376541118,1754013039621,-516.25533736,0.00022148,2]
[376541119,1754013039631,-464.83890402,0.00022148,2]
[376541120,1754013039640,-592.63272327,0.00022148,2]
[376541121,1754013039650,-460.0,0.00022148,2]
[376541122,1754013039659,-460.0,0.00022148,2]
[376541123,1754013039668,-460.0,0.00022148,2]
[376541124,1754013039677,-460.0,0.00022148,2]
[376541125,1754013039687,-460.0,0.00022148,2]
[376541126,1754013039696,-460.0,0.00022148,2]
[376541127,1754013039707,-460.0,0.00022148,2]
[376541128,1754013039717,-460.0,0.00022148,2]
[376541129,1754013039726,-460.0,0.00022148,2]
[376541130,1754013039735,-460.0,0.00022148,2]
[376541131,1754013039745,-460.0,0.00022148,2]
[376541132,1754013039754,-460.0,0.00022148,2]
[376541133,1754013039763,-460.0,0.00022148,2]
[376541134,1754013039772,-460.0,0.00022148,2]
[376541135,1754013039782,-462.66910842,0.00022148,2]
[376541136,1754013039791,-460.0,0.00022148,2]
[376541137,1754013039800,-460.0,0.00022148,2]
[376541138,1754013039810,-460.0,0.00022148,2]
[376541139,1754013039824,-500.65780807,0.00022148,2]
[376541140,1754013039833,-460.0,0.00022148,2]
[376541141,1754013039843,-465.91210577,0.00022148,2]
[376541142,1754013039856,-460.0,0.00022148,2]
[376541143,1754013039866,-460.0,0.00022148,2]
[376541144,1754013039876,-460.0,0.00022148,2]
[376541145,1754013039886,-460.0,0.00022148,2]
[376541146,1754013039896,-500.92,0.00022148,2]
[376541147,1754013039905,-460.0,0.00022148,2]
[376541148,1754013039914,-460.0,0.00022148,2]
[376541149,1754013039923,-460.0,0.00022148,2]
[376541150,1754013039932,-460.0,0.00022148,2]
[376541151,1754013039942,-526.88,0.00022148,2]
[376541152,1754013039954,-648.08,0.00022148,2]
[376541153,1754013039963,-945.42,0.00022148,2]
[376541154,1754013039972,-464.78865789,0.00022148,2]
[376541155,1754013039981,-162.10110494,0.00022148,2]
[376541156,1754013039991,-460.0,0.00022148,2]
[376541157,1754013040003,-460.0,0.00022148,2]
[376541159,1754013040013,-466.07337212,0.00022148,2]
[376541160,1754013040022,-463.56829537,0.00022148,2]
[376541162,1754013040032,-310.8684724,0.00022148,2]
[376541163,1754013040041,-461.1970334,0.00022148,2]
[376541164,1754013040051,-460.0,0.00022148,2]
[376541165,1754013040061,-463.40151553,0.00022148,2]
[376541166,1754013040070,-462.40811719,0.00022148,2]
[376541167,1754013040079,-466.04918316,0.00022148,2]
[376541168,1754013040089,-460.0,0.00022148,2]
[376541169,1754013040099,-256.00560484,0.00022148,2]
[376541170,1754013040110,-460.0,0.00022148,2]
[376541171,1754013040121,-460.0,0.00022148,2]
[376541172,1754013040131,-460.0,0.00022148,2]
[376541173,1754013040140,-466.15855207,0.00022148,2]
[376541174,1754013040150,-573.55586289,0.00022148,2]
[376541175,1754013040159,-639.16,0.00022148,2]
[376541176,1754013040168,-460.0,0.00022148,2]
[376541177,1754013040177,-460.0,0.00022148,2]
[376541178,1754013040186,-463.94670311,0.00022148,2]
[376541179,1754013040196,-561.38,0.00022148,2]
[376541180,1754013040206,-462.3241066,0.00022148,2]
[376541181,1754013040215,-460.0,0.00022148,2]
[376541182,1754013040224,-460.0,0.00022148,2]
[376541183,1754013040233,-620.29,0.00022148,2]
[376541184,1754013040243,-465.10469996,0.00022148,2]
[376541185,1754013040252,-460.32425593,0.00022148,2]
[376541186,1754013040261,-747.27,0.00022148,2]
[376541187,1754013040270,-460.0,0.00022148,2]
[376541188,1754013040279,-460.0,0.00022148,2]
[376541189,1754013040288,-460.0,0.00022148,2]
[376541190,1754013040298,-460.0,0.00022148,2]
[376541191,1754013040307,-460.0,0.00022148,2]
[376541192,1754013040316,-461.17977067,0.00022148,2]
[376541193,1754013040325,-460.0,0.00022148,2]
[376541194,1754013040334,-596.1,0.00022148,2]
[376541195,1754013040343,-460.0,0.00022148,2]
[376541196,1754013040352,-557.62,0.00022148,2]
[376541197,1754013040361,-460.0,0.00022148,2]
[376541198,1754013040370,-460.0,0.00022148,2]
[376541200,1754013040380,-505.56247478,0.00022149,2]
[376541202,1754013040389,-158.7,0.0002215,2]
[376541204,1754013040398,-460.0,0.00022158,2]
[376541206,1754013040408,-2028.54,0.00022158,2]
[376541208,1754013040417,-9659.2428077,0.00022166,2]
[376541210,1754013040426,-500.0,0.00022173,2]
[376541212,1754013040436,-504.53532872,0.00022173,2]
[376541213,1754013040445,-500.54346408,0.00022173,2]
[376541214,1754013040455,-210.22826205,0.00022173,2]
[376541215,1754013040465,-500.0,0.00022173,2]
[376541216,1754013040475,-501.07917937,0.00022173,2]
[376541217,1754013040485,-500.0,0.00022173,2]
[376541218,1754013040494,-501.12272241,0.00022173,2]
[376541219,1754013040503,-500.0,0.00022173,2]
[376541220,1754013040513,-500.0,0.00022173,2]
[376541221,1754013040522,-504.40616405,0.00022173,2]
[376541222,1754013040531,-501.27480191,0.00022173,2]
[376541223,1754013040540,-500.42469345,0.00022173,2]
[376541224,1754013040550,-503.31137898,0.00022173,2]
[376541225,1754013040559,-357.56008132,0.00022173,2]
[376541227,1754013040568,-504.55829607,0.00022173,2]
[376541228,1754013040578,-200.38069731,0.00022173,2]
[376541229,1754013040587,-231.20315744,0.00022173,2]
[376541230,1754013040596,-253.21817538,0.00022173,2]
[376541231,1754013040606,-500.0,0.00022173,2]
[376541232,1754013040615,-500.0,0.00022173,2]
[376541233,1754013040625,-258.29624319,0.00022173,2]
[376541234,1754013040634,-167.15315883,0.00022173,2]
[376541235,1754013040644,-500.0,0.00022173,2]
[376541236,1754013040653,-501.18428227,0.00022173,2]
[376541237,1754013040662,-500.0,0.00022173,2]
[376541238,1754013040672,-500.0,0.00022173,2]
[376541239,1754013040681,-500.0,0.00022173,2]
[376541240,1754013040690,-500.0,0.00022173,2]
[376541241,1754013040702,-500.0,0.00022173,2]
[376541242,1754013040712,-500.0,0.00022173,2]
[376541243,1754013040722,-500.0,0.00022173,2]
[376541244,1754013040731,-500.0,0.00022173,2]
[376541245,1754013040740,-460.0,0.00022188,2]
[376541246,1754013040750,-476.39,0.00022188,2]
[376541247,1754013040759,-1038.79,0.00022188,2]
[376541248,1754013040769,-1794.93,0.00022188,2]
[376541249,1754013040778,-460.0,0.00022188,2]
[376541250,1754013040787,-462.77216112,0.00022188,2]
[376541251,1754013040797,-460.0,0.00022188,2]
[376541252,1754013040807,-460.0,0.00022188,2]
[376541253,1754013040821,-460.0,0.00022188,2]
[376541254,1754013040830,-460.0,0.00022188,2]
[376541255,1754013040840,-702.31,0.00022188,2]
[376541256,1754013040849,-608.56,0.00022188,2]
[376541257,1754013040860,-200.42333442,0.00022189,2]
[376541258,1754013040870,-1381.67,0.00022189,2]
[376541259,1754013040879,-460.0,0.00022189,2]
[376541260,1754013040890,-652.77,0.00022189,2]
[376541261,1754013040899,-460.0,0.00022189,2]
[376541262,1754013040909,-659.67,0.00022189,2]
[376541263,1754013040918,-460.0,0.0002219,2]
[376541264,1754013040927,-460.0,0.0002219,2]
[376541265,1754013040936,-460.0,0.0002219,2]
[376541266,1754013040946,-460.0,0.0002219,2]
[376541267,1754013040956,-6295.89,0.0002219,2]
[376541268,1754013040965,-1149.39,0.0002219,2]
[376541269,1754013040974,-523.4412425,0.00022273,2]
[376541270,1754013040983,-460.0,0.00022273,2]
[376541271,1754013040993,-460.0,0.00022273,2]
[376541272,1754013041002,-460.0,0.00022273,2]
[376541273,1754013041011,-460.0,0.00022273,2]
[376541274,1754013041020,-460.0,0.00022273,2]
[376541275,1754013041029,-460.0,0.00022273,2]
[376541276,1754013041137,-460.0,0.00022273,2]
[376541277,1754013041147,-460.0,0.00022273,2]
[376541278,1754013041156,-464.95983622,0.00022273,2]
[376541279,1754013041166,-465.23824576,0.00022273,2]
[376541280,1754013041175,-460.0,0.00022273,2]
[376541281,1754013041184,-460.0,0.00022273,2]
[376541282,1754013041194,-270.43235224,0.00022273,2]
[376541283,1754013041203,-463.84953286,0.00022273,2]
[376541284,1754013041213,-460.0,0.00022273,2]
[376541285,1754013041222,-460.0,0.00022273,2]
[376541286,1754013041231,-465.19559251,0.00022273,2]
[376541287,1754013041239,-223.9,0.00022332,4]
[376541288,1754013041249,-6509.80866638,0.00022392,2]
[376541289,1754013041257,-500.0,0.00022394,2]
[376541290,1754013041268,-371.6513522,0.00022395,2]
[376541291,1754013041277,-461.56942802,0.00022395,2]
[376541292,1754013041286,-1604.02,0.00022395,2]
[376541293,1754013041295,-460.0,0.00022402,2]
[376541294,1754013041305,-266.81265733,0.00022402,2]
[376541295,1754013041314,-460.0,0.00022402,2]
[376541296,1754013041324,-461.77925271,0.00022402,2]
[376541297,1754013041334,-259.4678093,0.00022402,2]
[376541298,1754013041343,-467.96756394,0.00022402,2]
[376541299,1754013041353,-464.94236143,0.00022411,2]
[376541300,1754013041363,-460.0,0.00022411,2]
[376541301,1754013041372,-542.9,0.00022411,2]
[376541302,1754013041381,-2204.99,0.00022411,2]
[376541303,1754013041391,-500.0,0.00022411,2]
[376541304,1754013041400,-500.0,0.00022411,2]
[376541305,1754013041409,-525.80715256,0.00022411,2]
[376541306,1754013041418,-500.0,0.00022411,2]
[376541307,1754013041427,-500.0,0.00022411,2]
[376541308,1754013041437,-500.0,0.00022411,2]
[376541309,1754013041446,-500.0,0.00022411,2]
[376541310,1754013041456,-500.0,0.00022411,2]
[376541311,1754013041466,-500.0,0.00022411,2]
[376541312,1754013041475,-500.0,0.00022411,2]
[376541313,1754013041483,-500.0,0.00022411,2]
[376541314,1754013041493,-500.0,0.00022411,2]
[376541315,1754013041502,-396.87001794,0.00022411,2]
[376541316,1754013041511,-500.0,0.00022411,2]
[376541317,1754013041521,-353.47510401,0.00022411,2]
[376541318,1754013041530,-500.0,0.00022411,2]
[376541319,1754013041539,-489.18083737,0.00022411,2]
[376541320,1754013041548,-336.6655531,0.00022411,2]
[376541321,1754013041557,-500.0,0.00022411,2]
[376541322,1754013041566,-446.38356915,0.00022411,2]
[376541323,1754013041576,-157.69236316,0.00022411,2]
[376541324,1754013041585,-500.0,0.00022411,2]